Cogmind - Beta 15 @@@ ROGUE MODE // 2025.10.14 @ 04:32:38 Player: NQH Result: Destroyed by S-10 Pest with Light Assault Rifle Performance ------------- Evolutions (1) 500 Regions Visited (2) 400 Robots Destroyed (31) 155 Value Destroyed (732) 732 Prototype IDs (0) 0 Alien Tech Used (0) 0 Bonus (0) 0 TOTAL SCORE: 1787 Bonus ------- None Cogmind --------- Core Integrity 0/400 Matter 280/300 Energy 93/100 System Corruption 7% Temperature Cool (0) Movement Hovering (56) Location -9/Materials Parts ------- > --- POWER (1) -------- (None) > --- PROPULSION (2) --- Airjet Airjet > --- UTILITY (2) ------ (None) > --- WEAPON (4) ------- Scythe > --- INVENTORY (5) ---- Airjet Airjet Datajack Peak State ------------ > --- POWER ------------ Light Nuclear Core > --- PROPULSION ------- Aluminum Leg Aluminum Leg > --- UTILITY ---------- Heat Sink Visual Processing Unit > --- WEAPON ----------- Scythe Scythe Scythe Scythe > --- INVENTORY -------- Airjet Airjet Airjet Airjet Datajack [Rating: 21] Favorites ----------- Power Light Ion Engine Engine Light Ion Engine Power Core Light Nuclear Core Propulsion Compact Wheel Leg Aluminum Leg Wheel Compact Wheel Hover Unit Airjet Utility Medium Armor Plating Device Heat Sink Processor Visual Processing Unit Protection Medium Armor Plating Weapon Scythe Energy Gun Particle Gun Ballistic Cannon Improved Light Cannon Slashing Weapon Scythe Special Melee Weapon Datajack Build | -11 -10 -9 ------- Run | Yrd Mat Mat Slots Evolved 2 | . . 2 Power . | . . . Propulsion . | . . . Utility . | . . . Weapon 2 | . . 2 Parts Attached 30 | 3 8 19 Power 5 | 1 1 3 Engine 4 | 1 1 2 Core 1 | . . 1 Reactor . | . . . Propulsion 6 | 2 . 4 Treads . | . . . Leg 2 | . . 2 Wheel 2 | 2 . . Hover 2 | . . 2 Flight . | . . . Utility 8 | . 3 5 Device 1 | . . 1 Storage . | . . . Processor 1 | . . 1 Hackware . | . . . Protection 6 | . 3 3 Artifact . | . . . Weapon 11 | . 4 7 Energy Gun 2 | . 2 . Energy Cannon . | . . . Ballistic Gun . | . . . Ballistic Cannon 4 | . 2 2 Launcher . | . . . Special Weapon . | . . . Impact Weapon . | . . . Slashing Weapon 4 | . . 4 Piercing Weapon . | . . . Special Melee Weapon 1 | . . 1 Unidentified Prototypes . | . . . Parts Lost 14 | . 1 13 Power 3 | . . 3 Propulsion 4 | . . 4 Utility 4 | . 1 3 Weapon 3 | . . 3 Highest Loss Streak 8 | . 1 8 To Critical Strikes . | . . . Average Backups 4 | . 3 4 Power . | . . . Propulsion 2 | . . 3 Utility . | . 1 . Weapon . | . 1 . Tool/Special . | . . . Unused Backups 2 | . . 2 Power . | . . . Propulsion 2 | . . 2 Utility . | . . . Weapon . | . . . Tool/Special . | . . . Average Slot Usage (%) 87 | . 92 83 Engine 8 | . 14 4 Core 2 | . . 4 Leg 8 | . . 13 Wheel 13 | . 28 4 Device 1 | . . 2 Processor 5 | . . 8 Protection 12 | . 24 5 Ballistic Cannon 13 | . 22 8 Slashing Weapon 18 | . . 29 Peak Build Rating 21 | 3 12 21 Average Rating 13 | 2 10 16 On Entrance 4 | . 3 11 Naked Turns . | . . . Heaviest Build 26 | 3 25 26 Greatest Support 32 | 32 32 32 Greatest Overweight (x) 4 | . . 4 Average Overweight (x) . | . . . Largest Inventory Capacity 5 | 5 5 5 Average Capacity 5 | 5 5 5 Most Carried 5 | . 5 5 Average Carried 4 | . 3 4 Final Capacity 5 | 5 5 5 Final Carried 5 | . 5 3 Class Distribution -------------------- 79% | Mutant 20% | Scavenger-Mutant Dominant Class ---------------- Mutant | -10/Materials Mutant | -9/Materials Resources | -11 -10 -9 ----------- Run | Yrd Mat Mat Matter Collected 709 | 230 236 243 Remotely . | . . . Salvage Created 921 | . 216 705 Parts 65 | . 22 43 Haulers Intercepted 1 | . 1 . Recyclers Shooed 3 | . 1 2 Parts Field Recycled . | . . . Retrieved Matter . | . . . Parts Self-Destructed . | . . . Prevented . | . . . Kills | -11 -10 -9 ------- Run | Yrd Mat Mat Combat Hostiles Destroyed 23 | . 9 14 Melee 14 | . . 14 Cannons 9 | . 9 . Classes Destroyed 9 | . 6 3 Worker 2 | . 1 1 Tunneler 1 | . . 1 Hauler 1 | . 1 . Recycler 2 | . . 2 Operator 1 | . 1 . Watcher 1 | . 1 . Swarmer 9 | . 6 3 Grunt 12 | . 3 9 Sentry 2 | . . 2 Best Kill Streak 8 | . 8 3 Combat Bots Only 5 | . 5 3 Max Kills in Single Turn 2 | . 2 1 Gunslinging . | . . . Exploded . | . . . Melee 1 | . . 1 Uniques/NPCs Destroyed . | . . . Combat | -11 -10 -9 -------- Run | Yrd Mat Mat Hostile Shots Fired 225 | . 72 153 Missed 59 | . 16 43 Hits 166 | . 56 110 Projectile 166 | . 56 110 Critical Strikes 3 | . 1 2 Damage Taken 2035 | . 530 1505 Core 452 | . 49 403 Absorbed by Shields . | . . . Core Remaining (%) 90 | 100 80 . Volleys Fired 33 | . 33 . Largest 2 | . 2 . Hottest 66 | . 66 . Shots Fired 65 | . 65 . Gun . | . . . Cannon 65 | . 65 . Launcher . | . . . Special . | . . . Kinetic 65 | . 65 . Thermal . | . . . Explosive . | . . . Electromagnetic . | . . . Robot Hit Streak 4 | . 4 . Robot Miss Streak 4 | . 4 . Penetration Max . | . . . Secondary Targets . | . . . Shots Hit Robots 65 | . 23 42 Core Hits 33 | . 16 17 Critical Kills . | . . . Critical Parts Destroyed . | . . . Critical Strikes 10 | . 3 7 Blast 3 | . 3 . Sever 7 | . . 7 Melee Attacks 62 | . . 62 Impact . | . . . Slashing 62 | . . 62 Piercing . | . . . Sneak Attacks 6 | . . 6 Combat Hostiles . | . . . Follow-up Attacks 12 | . . 12 Damage Inflicted 2166 | . 648 1518 Guns . | . . . Cannons 560 | . 560 . Explosions 88 | . 88 . Melee 1495 | . . 1495 Ramming 23 | . . 23 Kinetic 560 | . 560 . Thermal . | . . . Explosive . | . . . Electromagnetic 88 | . 88 . Impact . | . . . Slashing 1495 | . . 1495 Piercing . | . . . Highest Corruption 7 | . . 7 Average Corruption 7 | . . 7 Corruption Purged . | . . . Corruption Blocked . | . . . Effects 2 | . . 2 Message Errors 1 | . . 1 Data Loss (major) 1 | . . 1 Overload Shots . | . . . Overflow Damage 136 | . 4 132 Projectiles 4 | . 4 . Explosions . | . . . Melee 132 | . . 132 Knockbacks 11 | . 11 . Impact . | . . . Kinetic 10 | . 10 . Secondary 1 | . 1 . Self-Inflicted Damage 40 | . 35 5 Shots 2 | . 2 . Rammed 4 | . . 4 Targets Rammed 11 | . . 11 Kicked 7 | . . 7 Crushed . | . . . Highest Temperature 347 | . 347 15 Average Temperature 138 | . 140 10 Received Heat Transfer 681 | . 63 618 Effects 4 | . 4 . Shutdowns 1 | . 1 . Energy Bleed 1 | . 1 . Interference 2 | . 2 . Siege Activations . | . . . Martial Activations . | . . . Shielding Activations . | . . . Robots Disrupted . | . . . Combat Hostiles . | . . . Robots Corrupted . | . . . Combat Hostiles . | . . . Parts Fried . | . . . Impact Corruptions . | . . . Robots Melted . | . . . Combat Hostiles . | . . . Parts Melted . | . . . Heat Transferred . | . . . Parts Sabotaged . | . . . Parts Stolen . | . . . Parts Stripped . | . . . Power Chain Reactions . | . . . Alert | -11 -10 -9 ------- Run | Yrd Mat Mat Maximum Alert Level 1 | . 1 . Low Security (%) 94 | 100 85 100 Level 1 5 | . 14 . Level 2 . | . . . Level 3 . | . . . Level 4 . | . . . Level 5 . | . . . High Security . | . . . Max Security . | . . . Peak Influence 214 | . 214 165 Initial 85 | . . 85 Average 109 | . 113 115 Influence Increases 755 | . 324 431 Destroy 0b10 Robot/C 460 | . 180 280 Destroy 0b10 Robot/NC 40 | . 20 20 Destroy Leader 114 | . 44 70 Disable Machine 75 | . 75 . Destroy Structure 6 | . 5 1 Lose Combat Pursuer 60 | . . 60 Influence Decreases 615 | . 120 495 Entered New Map 119 | . . 119 Time Decay 356 | . 110 246 Lost Part 140 | . 10 130 Squads Dispatched 3 | . 1 2 Investigation 1 | . . 1 Extermination . | . . . Reinforcement 2 | . 1 1 Assault . | . . . Garrison . | . . . Intercept . | . . . Searches Triggered . | . . . Construction Impeded . | . . . Haulers Reinforced . | . . . Active Scanning Responses . | . . . Cargo Convoy Interrupts . | . . . Stealth | -11 -10 -9 --------- Run | Yrd Mat Mat Distress Signals 2 | . . 2 Communications Jammed . | . . . Distress Signals . | . . . Times Spotted 37 | . 14 23 Peak Tracking Total 5 | . 5 5 Tactical Retreats 3 | . . 3 Traps | -11 -10 -9 ------- Run | Yrd Mat Mat Traps Triggered 1 | . . 1 Indirectly . | . . . Trap Hack Attempts 24 | . . 24 Triggered . | . . . Disarmed 2 | . . 2 Reprogrammed . | . . . Reused . | . . . Traps Extracted . | . . . Installed . | . . . Triggered . | . . . Machines | -11 -10 -9 ---------- Run | Yrd Mat Mat Machines Disabled 5 | . 5 . Max in Single Turn 3 | . 3 . Machines Repaired . | . . . Machines Dismantled . | . . . Machines Sabotaged . | . . . Overloaded Fab Kills . | . . . Hacking | -11 -10 -9 --------- Run | Yrd Mat Mat Machines Accessed . | . . . Terminals . | . . . Fabricators . | . . . Repair Stations . | . . . Recycling Units . | . . . Scanalyzers . | . . . Garrison Access . | . . . Total Hacks . | . . . Successful . | . . . Failed . | . . . Catastrophic . | . . . Database Lockouts . | . . . Manual . | . . . Terminals . | . . . Fabricators . | . . . Repair Stations . | . . . Recycling Units . | . . . Scanalyzers . | . . . Garrison Access . | . . . Terminal Hacks . | . . . Fabricator Hacks . | . . . Repair Station Hacks . | . . . Recycling Unit Hacks . | . . . Scanalyzer . | . . . Garrison Access Hacks . | . . . Unauthorized Hacks . | . . . Terminals . | . . . Fabricators . | . . . Repair Stations . | . . . Recycling Units . | . . . Scanalyzers . | . . . Garrison Access . | . . . Data Cores Recovered . | . . . Used . | . . . Hacking Detections . | . . . Full Trace Events . | . . . Feedback Events . | . . . Feedback Blocked . | . . . Robot Schematics Acquired . | . . . Robots Built . | . . . Authchips . | . . . Time . | . . . Total Robot Build Rating . | . . . Part Schematics Acquired . | . . . Parts Built . | . . . Authchips . | . . . Time . | . . . Total Part Build Rating . | . . . Parts Repaired . | . . . Time . | . . . Parts Recycled . | . . . Recycled Matter . | . . . Retrieved Matter . | . . . Retrieved Components . | . . . Parts Scanalyzed . | . . . Part Schematics Acquired . | . . . Parts Damaged . | . . . Bothacking | -11 -10 -9 ------------ Run | Yrd Mat Mat Used RIF Installer . | . . . Robots Hacked . | . . . Non-combat . | . . . Combat . | . . . Robot Hacks Applied . | . . . Relay Couplers Released . | . . . Fabnet Peak Effective % . | . . . Robots Rewired . | . . . Allies Hacked . | . . . Hacks Repelled . | . . . Allies | -11 -10 -9 -------- Run | Yrd Mat Mat Total Allies . | . . . Largest Group . | . . . Highest-Rated Group . | . . . Highest-Rated Ally . | . . . Total Orders . | . . . Ally Attacks . | . . . Total Damage . | . . . Kills . | . . . Allies Corrupted . | . . . Allies Melted . | . . . Intel | -11 -10 -9 ------- Run | Yrd Mat Mat Active Infowar (turns) 434 | . . 434 Optics 434 | . . 434 Robot Analysis Total . | . . . Derelict Logs Recovered . | . . . Drone Launches . | . . . Drone Recoveries . | . . . Exploration | -11 -10 -9 ------------- Run | Yrd Mat Mat Turns Passed 901 | 43 325 533 Spaces Moved 540 | 40 202 298 Core 11 | 2 . 9 Treads . | . . . Legs 184 | . . 184 Wheels 316 | 38 202 76 Hover 29 | . . 29 Flight . | . . . Fastest Speed 50 | 50 100 50 Average Speed 104 | 97 100 108 Slowest Speed 250 | 100 100 250 Overloaded Moves . | . . . Propulsion Burnouts . | . . . Robots Hopped . | . . . Potential Cave-ins . | . . . Cave-ins Triggered 1 | . . 1 Exploration Rate (%) 21 | 3 32 29 Regions Visited 2 Branch Regions . Pre-discovered Areas . | . . . Known Exits Taken . | . . . Unknown Exits Taken 2 | 1 1 . Scrap Searched . | . . . Spaces Dug 1 | . . 1 Terrain Destroyed 5 | . 4 1 Melee 1 | . . 1 Projectile 4 | . 4 . AOE . | . . . Terrain Rammed . | . . . Walls Destroyed . | . . . Machines Disabled . | . . . Actions | -11 -10 -9 --------- Run | Yrd Mat Mat Total 734 | 42 260 432 Wait 27 | . 7 20 Move 538 | 39 201 298 Hop . | . . . Pick Up 10 | . 6 4 Fast Attach 20 | 3 6 11 Attach 6 | . 1 5 Detach 3 | . 2 1 Swap 5 | . 1 4 Drop 12 | . 3 9 Fire 33 | . 33 . Melee 45 | . . 45 Ram 4 | . . 4 Kick 7 | . . 7 Crush . | . . . Escape Stasis . | . . . Rewire . | . . . Trap 24 | . . 24 Miscellaneous . | . . . Route ------- -11/Scrapyard -10/Materials -9/Materials History --------- Turn | Location | Event 5 | -11/Scrapyard | Discovered new exit (range 16) 44 | -11/Scrapyard | Entered Materials 149 | -10/Materials | Discovered new exit (range 10) 309 | -10/Materials | Build established: Mutant 369 | -10/Materials | Entered another Materials area 369 | -9/Materials | Evolved 2 slots: Weapon x2 543 | -9/Materials | Lost 4 parts (1p2n1u) 810 | -9/Materials | Crushed by falling debris 810 | -9/Materials | Core integrity fell below 50% 868 | -9/Materials | Core integrity fell below 20% 901 | -9/Materials | Lost 8 parts (1p2n2u3w) 902 | -9/Materials | Destroyed by S-10 Pest with Light Assault Rifle Last Messages --------------- 00855_ Destroyed Lgt. Ion Engine. 00855_ R-06 Scavenger sends out distress signal. 00866_ Aluminum Leg destroyed. 00867_ M-13 Machinist fits Backup Propulsion I on G-34 Mercenary. 00867_ K-01 Serf collects debris. 00869_ M-13 Machinist fits Backup Propulsion I on G-34 Mercenary. 00869_ G-34 Mercenary Sml. Laser severed. 00870_ Scythe destroyed. 00872_ Slammed into S-10 Pest. 00873_ K-01 Serf collects debris. 00873_ Slammed into S-10 Pest. 00876_ K-01 Serf collects debris. 00880_ S-10 Pest destroyed. 00881_ K-01 Serf collects debris. 00882_ System corrupted: Substantial component data lost. 00885_ K-01 Serf collects debris. 00892_ W-16 Scout sends out distress signal. Map ----- +----------------------------------------------------+ | ?????????????????????????????????????????????????? | | ?????????????????????????????????????????????????? | | ?????????????????????????????????????????????????? | | ?????????????????????????????????????????????????? | | ?????????????????????????????????????????????????? | | ?????????????????????????????????????????????????? | | ?????????????????????????????????????????????????? | | ?????????????????????????????????????????????????? | | ?????????????????????????????????????????????????? | | ?????????????????????????????????????????????????? | | ???????????????????#?????????????????????????????? | | ???????????????????#+??#######??????????? #??????? | | ??????????????????## ### ########## #??????? | | ??????????????????# +??????? | | ??????????????????+ " #??????? | | ??????????????????# #??????? | | ??????????????????## ### ##/################## | | ???????????????????????## s## + | | ?????????????????###+#??#k ## # [ | | ?????????????????# ??#t ## / *%% | | ?????????????????# ?# ## ### =%##### | | ?????????????????# ?# ############?# %# | | ?????????????????# # #????????????# [=# | | ?????????????????# # # ""?????????# =# [[ | | ?????????????????#! + + "T ###### % # [[ | | ?????????????????########@ # "" / # [[ | | ??????????????????????? # ###### # | | ??????????????????????####r#####?????????###*# | | ?????????????????????????? ???????????????#=# | | ??????????????????????????"" ??????????????#%# ### | | ??????????????????????????"" ?????????????#*###?? | | ???????????????????????????" ????????????# #???? | | ???????????????????????????" #???????????# #???? | | ???????????????????????????? !#???????????# #???? | | ????????????????????????????? #???????????# #???? | | ?????????????????????????????? #???????????# #???? | | ???????????????????????????????#???????????#+#???? | | ???????????????????????????????????????????? ????? | | ????????????????????????????????????????????"????? | | ????????????????????????????????????????????"????? | | ?????????????????????????????????????????????????? | | ?????????????????????????????????????????????????? | | ?????????????????????????????????????????????????? | | ?????????????????????????????????????????????????? | | ?????????????????????????????????????????????????? | | ?????????????????????????????????????????????????? | | ?????????????????????????????????????????????????? | | ?????????????????????????????????????????????????? | | ?????????????????????????????????????????????????? | | ?????????????????????????????????????????????????? | +----------------------------------------------------+ Best States ------------- Heat Dissipation 38 Energy Generation 14 Energy Capacity 250 Matter Stores 300 Matter Capacity 300 Sight Range 18 Terrain Scan Density 10 Armor Coverage 450 Evasion (%) 55 Item Schematics ----------------- None Robot Schematics ------------------ None Fabricated ------------ Nothing Repaired ---------- Nothing Alien Tech Used ----------------- None Achievements -------------- None Challenges ------------ None Game ------ Seed ShiftSeismicSource Manual? 0 Play Time 00:08:21 Cumulative 32.5 hours Start 2025.10.14 @ 00:01:26 End 2025.10.14 @ 04:32:38 Sessions 1 Manual Loads 0 Difficulty Rogue Special Mode None Game No. 131 Rogue 131 Adventurer 0 Explorer 0 Win Type - Total 0 Types 0/0/0/0/0/0/0/0/0/0 Lore% 11 Gallery% 31 Achievement% 28 Wizard Run 0 Options --------- Layout 1 ASCII 0 Keyboard 1 Movement Vi Keybinds 0 Fullscreen 1 Font 16/SmallcapsGlow Map View 55x38 Zoom Use 0% Tactical HUD 1 Map Filters NONE Filters NONE Steam 1 RUN: 72df8d90-6503-4b72-9177-74ae67efcdc0